[Event "*** Titled Tuesday Blitz"]
[Site "Chess.com"]
[Date "2019.11.05"]
[Round "10"]
[White "ShahMatKanal"]
[Black "Zq1"]
[Result "1-0"]
[WhiteElo "2536"]
[BlackElo "2591"]
[TimeControl "180+2"]
[EndTime "15:20:30 PST"]
[Termination "ShahMatKanal won by resignation"]

1. d4 {[%clk 0:02:59.9]} 1... Nf6 {[%clk 0:02:56.7]} 2. Bf4 {[%clk 0:02:58.6]}
2... g6 {[%clk 0:02:56.6]} 3. e3 {[%clk 0:02:59.4]} 3... Bg7 {[%clk 0:02:58.2]}
4. Nf3 {[%clk 0:03:00.8]} 4... O-O {[%clk 0:02:59.9]} 5. h3 {[%clk 0:03:02.2]}
5... c5 {[%clk 0:03:01.2]} 6. c3 {[%clk 0:03:02.1]} 6... d6 {[%clk 0:03:01.4]}
7. Bh2 {[%clk 0:03:00.6]} 7... Nbd7 {[%clk 0:03:00.7]} 8. Be2 {[%clk 0:02:57.3]}
8... a6 {[%clk 0:03:01.1]} 9. O-O {[%clk 0:02:44.6]} 9... b5 {[%clk 0:03:02.2]}
10. a4 {[%clk 0:02:39.9]} 10... b4 {[%clk 0:03:03.3]} 11. dxc5 {[%clk
0:02:25.5]} 11... bxc3 {[%clk 0:03:03.5]} 12. Nxc3 {[%clk 0:02:16.8]} 12... Nxc5
{[%clk 0:03:03.6]} 13. Nd4 {[%clk 0:02:09.1]} 13... Bb7 {[%clk 0:02:54.7]} 14.
b4 {[%clk 0:01:59.5]} 14... Nce4 {[%clk 0:02:51.3]} 15. Nxe4 {[%clk 0:02:00.5]}
15... Nxe4 {[%clk 0:02:51.4]} 16. Qd3 {[%clk 0:01:35.9]} 16... e5 {[%clk
0:02:34.3]} 17. Nb3 {[%clk 0:01:10]} 17... Qb6 {[%clk 0:02:30.7]} 18. Na5 {[%clk
0:01:02.6]} 18... Qxb4 {[%clk 0:02:12.1]} 19. Nxb7 {[%clk 0:01:00.4]} 19... Qxb7
{[%clk 0:02:12.7]} 20. Rab1 {[%clk 0:00:56.9]} 20... Qc6 {[%clk 0:02:13.4]} 21.
Bf3 {[%clk 0:00:40.8]} 21... f5 {[%clk 0:01:29.1]} 22. a5 {[%clk 0:00:20.6]}
22... Rac8 {[%clk 0:01:04.1]} 23. Rb6 {[%clk 0:00:20.4]} 23... Qc4 {[%clk
0:00:55.8]} 24. Bxe4 {[%clk 0:00:19.5]} 24... fxe4 {[%clk 0:00:47.8]} 25. Qxd6
{[%clk 0:00:20]} 25... Qc5 {[%clk 0:00:31.8]} 26. Qxc5 {[%clk 0:00:17.9]} 26...
Rxc5 {[%clk 0:00:32.1]} 27. Rxa6 {[%clk 0:00:19.5]} 27... Bh6 {[%clk 0:00:30]}
28. Re6 {[%clk 0:00:18.7]} 28... Rxa5 {[%clk 0:00:30.7]} 29. Rxe5 {[%clk
0:00:18.9]} 29... Ra4 {[%clk 0:00:28.1]} 30. Bg3 {[%clk 0:00:18.6]} 30... Bg7
{[%clk 0:00:27.1]} 31. Re7 {[%clk 0:00:18.4]} 31... Bf6 {[%clk 0:00:27]} 32. Re6
{[%clk 0:00:19]} 32... h5 {[%clk 0:00:26]} 33. h4 {[%clk 0:00:19.6]} 33... Kf7
{[%clk 0:00:25.7]} 34. Rb6 {[%clk 0:00:18.9]} 34... Ra3 {[%clk 0:00:20.8]} 35.
Bd6 {[%clk 0:00:17.1]} 35... Rfa8 {[%clk 0:00:21]} 36. Bxa3 {[%clk 0:00:17.7]}
36... Rxa3 {[%clk 0:00:22]} 37. Rb4 {[%clk 0:00:18.7]} 37... Bxh4 {[%clk
0:00:22.1]} 38. Rxe4 {[%clk 0:00:19.9]} 38... Bf6 {[%clk 0:00:22.2]} 39. g3
{[%clk 0:00:21.2]} 39... g5 {[%clk 0:00:22.9]} 40. Kg2 {[%clk 0:00:22.4]} 40...
g4 {[%clk 0:00:23.8]} 41. Rh1 {[%clk 0:00:22.6]} 41... Kg6 {[%clk 0:00:24.9]}
42. Rc4 {[%clk 0:00:23.7]} 42... Ra6 {[%clk 0:00:23.7]} 43. Rc5 {[%clk 0:00:24]}
43... Bg5 {[%clk 0:00:20.9]} 44. Rhc1 {[%clk 0:00:25.1]} 44... Bf6 {[%clk
0:00:19.8]} 45. Rd5 {[%clk 0:00:24.1]} 45... h4 {[%clk 0:00:18.6]} 46. gxh4
{[%clk 0:00:25.3]} 46... Bxh4 {[%clk 0:00:19.6]} 47. Rc4 {[%clk 0:00:25.3]} 1-0

[Event "*** Titled Tuesday Blitz"]
[Site "Chess.com"]
[Date "2019.11.05"]
[Round "10"]
[White "DonPreuss"]
[Black "ER404"]
[Result "0-1"]
[WhiteElo "2119"]
[BlackElo "2277"]
[TimeControl "180+2"]
[EndTime "15:20:34 PST"]
[Termination "ER404 won on time"]

1. d4 {[%clk 0:03:01.9]} 1... Nf6 {[%clk 0:03:00.5]} 2. Nc3 {[%clk 0:03:02.3]}
2... d5 {[%clk 0:03:00.9]} 3. e4 {[%clk 0:03:03.5]} 3... dxe4 {[%clk 0:03:01.1]}
4. f3 {[%clk 0:03:04.9]} 4... exf3 {[%clk 0:02:56.4]} 5. Nxf3 {[%clk 0:03:04.4]}
5... Bf5 {[%clk 0:02:57.7]} 6. Ne5 {[%clk 0:03:04.7]} 6... e6 {[%clk 0:02:54.6]}
7. g4 {[%clk 0:03:05.9]} 7... Bg6 {[%clk 0:02:47.2]} 8. g5 {[%clk 0:03:06.7]}
8... Nd5 {[%clk 0:02:44]} 9. Qf3 {[%clk 0:03:06.9]} 9... Nd7 {[%clk 0:02:34]}
10. Nxg6 {[%clk 0:03:06.7]} 10... hxg6 {[%clk 0:02:25.3]} 11. Nxd5 {[%clk
0:03:07.4]} 11... exd5 {[%clk 0:02:25.9]} 12. Qxd5 {[%clk 0:03:09.3]} 12... Qe7+
{[%clk 0:01:42.1]} 13. Be2 {[%clk 0:02:56.9]} 13... O-O-O {[%clk 0:01:42.4]} 14.
Qa5 {[%clk 0:02:49.5]} 14... Re8 {[%clk 0:01:37.3]} 15. Qd2 {[%clk 0:02:31.3]}
15... Rh4 {[%clk 0:01:36]} 16. Rf1 {[%clk 0:02:25.2]} 16... Rxd4 {[%clk
0:01:14]} 17. Rf2 {[%clk 0:02:14.2]} 17... Rxd2 {[%clk 0:01:12.9]} 18. Bxd2
{[%clk 0:02:16.1]} 18... Nc5 {[%clk 0:01:12.2]} 19. O-O-O {[%clk 0:02:15.6]}
19... Ne4 {[%clk 0:01:11.2]} 20. Bg4+ {[%clk 0:02:14.9]} 20... Kb8 {[%clk
0:01:07.2]} 21. Re2 {[%clk 0:02:16.3]} 21... f5 {[%clk 0:01:01.2]} 22. gxf6
{[%clk 0:02:15.3]} 22... gxf6 {[%clk 0:01:01.9]} 23. Rde1 {[%clk 0:02:03]} 23...
f5 {[%clk 0:00:59.8]} 24. Bf3 {[%clk 0:01:58]} 24... Qh4 {[%clk 0:00:59.2]} 25.
a3 {[%clk 0:01:43.4]} 25... Bh6 {[%clk 0:00:59.3]} 26. Bxh6 {[%clk 0:01:41.4]}
26... Qxh6+ {[%clk 0:01:00]} 27. Kb1 {[%clk 0:01:26.8]} 27... Nd2+ {[%clk
0:00:57.1]} 28. Ka2 {[%clk 0:01:27.3]} 28... Rxe2 {[%clk 0:00:57.5]} 29. Rxe2
{[%clk 0:01:27.3]} 29... a6 {[%clk 0:00:54.4]} 30. Bd5 {[%clk 0:01:26]} 30... c6
{[%clk 0:00:49.3]} 31. Bf7 {[%clk 0:01:04.1]} 31... Ne4 {[%clk 0:00:48.5]} 32.
Bb3 {[%clk 0:00:58.5]} 32... g5 {[%clk 0:00:48.3]} 33. a4 {[%clk 0:00:08.3]}
33... a5 {[%clk 0:00:22.8]} 34. Ka3 {[%clk 0:00:05.9]} 34... Qd6+ {[%clk
0:00:22.3]} 35. Ka2 {[%clk 0:00:06.8]} 35... Kc7 {[%clk 0:00:22.9]} 36. h3
{[%clk 0:00:04.7]} 36... Nc5 {[%clk 0:00:20.5]} 37. Bg8 {[%clk 0:00:03.7]} 37...
Nxa4 {[%clk 0:00:20.4]} 38. Re6 {[%clk 0:00:04.6]} 38... Qd5+ {[%clk 0:00:21.1]}
39. b3 {[%clk 0:00:05]} 39... Kb6 {[%clk 0:00:15.5]} 0-1

[Event "*** Titled Tuesday Blitz"]
[Site "Chess.com"]
[Date "2019.11.05"]
[Round "10"]
[White "MITerryble"]
[Black "AndrBaryshpolets"]
[Result "1-0"]
[WhiteElo "2878"]
[BlackElo "2782"]
[TimeControl "180+2"]
[EndTime "15:20:50 PST"]
[Termination "MITerryble won by resignation"]

1. e4 {[%clk 0:03:01.9]} 1... e6 {[%clk 0:03:01.2]} 2. d4 {[%clk 0:03:02.7]}
2... d5 {[%clk 0:03:02.9]} 3. exd5 {[%clk 0:03:04.6]} 3... exd5 {[%clk
0:03:04.8]} 4. Nf3 {[%clk 0:03:06]} 4... Nf6 {[%clk 0:03:05.8]} 5. Bd3 {[%clk
0:03:06]} 5... Bg4 {[%clk 0:02:55.6]} 6. O-O {[%clk 0:03:03.5]} 6... Be7 {[%clk
0:02:56.8]} 7. h3 {[%clk 0:03:04]} 7... Bh5 {[%clk 0:02:57.8]} 8. Bf4 {[%clk
0:03:03]} 8... O-O {[%clk 0:02:58.2]} 9. Nbd2 {[%clk 0:03:04]} 9... Bd6 {[%clk
0:02:55.6]} 10. Bg5 {[%clk 0:03:03.8]} 10... Re8 {[%clk 0:02:49]} 11. c3 {[%clk
0:03:04.1]} 11... Nbd7 {[%clk 0:02:44.1]} 12. Qc2 {[%clk 0:03:03.1]} 12... Bg6
{[%clk 0:02:43.6]} 13. Bxg6 {[%clk 0:03:02.9]} 13... hxg6 {[%clk 0:02:44.3]} 14.
Rfe1 {[%clk 0:03:04.4]} 14... c6 {[%clk 0:02:41.3]} 15. Rxe8+ {[%clk 0:03:03.4]}
15... Qxe8 {[%clk 0:02:43.2]} 16. Re1 {[%clk 0:03:03.3]} 16... Qf8 {[%clk
0:02:41.7]} 17. Bxf6 {[%clk 0:02:50.8]} 17... Nxf6 {[%clk 0:02:26.2]} 18. Ne5
{[%clk 0:02:41.4]} 18... Bxe5 {[%clk 0:02:23]} 19. dxe5 {[%clk 0:02:37.5]} 19...
Re8 {[%clk 0:02:23.6]} 20. Qd1 {[%clk 0:02:35.4]} 20... Nd7 {[%clk 0:02:23.4]}
21. Nf3 {[%clk 0:02:30.7]} 21... Qc5 {[%clk 0:02:19.7]} 22. Qd4 {[%clk
0:02:26.6]} 22... Qxd4 {[%clk 0:02:16.8]} 23. cxd4 {[%clk 0:02:26.7]} 23... f6
{[%clk 0:02:16]} 24. Kf1 {[%clk 0:02:24.9]} 24... Kf7 {[%clk 0:02:16]} 25. h4
{[%clk 0:02:22]} 25... fxe5 {[%clk 0:01:36.4]} 26. dxe5 {[%clk 0:02:22.2]} 26...
Ke6 {[%clk 0:01:34.7]} 27. Nd4+ {[%clk 0:02:19.4]} 27... Ke7 {[%clk 0:01:35.3]}
28. f4 {[%clk 0:02:17.2]} 28... Nc5 {[%clk 0:01:29.3]} 29. g3 {[%clk 0:02:14.9]}
29... Ne6 {[%clk 0:01:29.6]} 30. Nf3 {[%clk 0:02:09.1]} 30... c5 {[%clk
0:01:24.4]} 31. Ke2 {[%clk 0:02:04.1]} 31... Rd8 {[%clk 0:01:15.7]} 32. Rd1
{[%clk 0:02:01.4]} 32... b5 {[%clk 0:01:12.6]} 33. Ke3 {[%clk 0:01:49.3]} 33...
b4 {[%clk 0:01:03.8]} 34. b3 {[%clk 0:01:28]} 34... a5 {[%clk 0:00:58.5]} 35.
Ng5 {[%clk 0:00:37.6]} 35... Nd4 {[%clk 0:00:47.5]} 36. g4 {[%clk 0:00:34.9]}
36... Rh8 {[%clk 0:00:38.7]} 37. Rh1 {[%clk 0:00:33.5]} 37... Nb5 {[%clk
0:00:34.3]} 38. h5 {[%clk 0:00:32.4]} 38... gxh5 {[%clk 0:00:34.6]} 39. gxh5
{[%clk 0:00:27.4]} 39... c4 {[%clk 0:00:27]} 40. f5 {[%clk 0:00:27.4]} 40... c3
{[%clk 0:00:23.1]} 41. h6 {[%clk 0:00:28.7]} 41... gxh6 {[%clk 0:00:06.2]} 42.
f6+ {[%clk 0:00:29.7]} 42... Ke8 {[%clk 0:00:07.6]} 43. e6 {[%clk 0:00:24.8]}
43... Nc7 {[%clk 0:00:08.5]} 44. Kd3 {[%clk 0:00:20.7]} 44... d4 {[%clk
0:00:05.7]} 45. Rh2 {[%clk 0:00:17.9]} 45... Rg8 {[%clk 0:00:03.5]} 46. f7+
{[%clk 0:00:18.8]} 46... Kf8 {[%clk 0:00:04.5]} 47. Nh7+ {[%clk 0:00:18.7]}
47... Ke7 {[%clk 0:00:05.3]} 48. fxg8=Q {[%clk 0:00:19.6]} 1-0

[Event "*** Titled Tuesday Blitz"]
[Site "Chess.com"]
[Date "2019.11.05"]
[Round "10"]
[White "timator"]
[Black "marianokar"]
[Result "1-0"]
[WhiteElo "2670"]
[BlackElo "2489"]
[TimeControl "180+2"]
[EndTime "15:21:16 PST"]
[Termination "timator won by resignation"]

1. d4 {[%clk 0:02:58.2]} 1... Nf6 {[%clk 0:03:00.1]} 2. Nf3 {[%clk 0:03:00.1]}
2... e6 {[%clk 0:03:01.4]} 3. g3 {[%clk 0:03:00]} 3... d5 {[%clk 0:03:02.2]} 4.
Bg2 {[%clk 0:03:01.9]} 4... b5 {[%clk 0:03:03.4]} 5. O-O {[%clk 0:03:03.1]} 5...
Bb7 {[%clk 0:03:04.6]} 6. a4 {[%clk 0:03:03.6]} 6... b4 {[%clk 0:03:05.2]} 7. c4
{[%clk 0:03:05]} 7... c5 {[%clk 0:03:03.1]} 8. cxd5 {[%clk 0:03:05.3]} 8... Bxd5
{[%clk 0:03:01.8]} 9. dxc5 {[%clk 0:03:04.8]} 9... Bxc5 {[%clk 0:03:00.7]} 10.
Bg5 {[%clk 0:03:05.9]} 10... Nbd7 {[%clk 0:02:59.5]} 11. Nbd2 {[%clk 0:03:06.6]}
11... O-O {[%clk 0:02:57.8]} 12. e4 {[%clk 0:03:06.7]} 12... Bb7 {[%clk
0:02:33.6]} 13. e5 {[%clk 0:03:07.1]} 13... h6 {[%clk 0:02:32.3]} 14. Bh4 {[%clk
0:02:58.2]} 14... g5 {[%clk 0:02:25.9]} 15. exf6 {[%clk 0:02:39.1]} 15... Nxf6
{[%clk 0:01:44]} 16. Nxg5 {[%clk 0:02:19.7]} 16... Bxg2 {[%clk 0:01:43.5]} 17.
Kxg2 {[%clk 0:02:21.6]} 17... hxg5 {[%clk 0:01:43.5]} 18. Bxg5 {[%clk
0:02:22.8]} 18... Qd5+ {[%clk 0:01:43.6]} 19. Nf3 {[%clk 0:02:21.3]} 19... Qxd1
{[%clk 0:01:24.3]} 20. Raxd1 {[%clk 0:02:23.2]} 20... Ne4 {[%clk 0:01:25.6]} 21.
Bh4 {[%clk 0:02:10.9]} 21... Rfc8 {[%clk 0:01:13.7]} 22. Nd2 {[%clk 0:01:27]}
22... Nxf2 {[%clk 0:00:57.3]} 23. Rxf2 {[%clk 0:01:20.2]} 23... Bxf2 {[%clk
0:00:58.5]} 24. Kxf2 {[%clk 0:01:22.1]} 24... Rc2 {[%clk 0:00:59.4]} 25. Bf6
{[%clk 0:01:23.3]} 25... Kh7 {[%clk 0:00:49.2]} 26. Ke2 {[%clk 0:01:06.2]} 26...
Kg6 {[%clk 0:00:50.3]} 27. Bd4 {[%clk 0:01:02.2]} 27... Rd8 {[%clk 0:00:22.1]}
28. Bxa7 {[%clk 0:01:01.8]} 28... Rxb2 {[%clk 0:00:22.8]} 29. Bb6 {[%clk
0:01:02]} 29... Rd6 {[%clk 0:00:19.5]} 30. a5 {[%clk 0:00:39.4]} 30... Ra2
{[%clk 0:00:20.6]} 31. Bc5 {[%clk 0:00:40.3]} 31... Rd5 {[%clk 0:00:16.8]} 32.
Bxb4 {[%clk 0:00:39.8]} 32... Re5+ {[%clk 0:00:16.7]} 33. Kd3 {[%clk 0:00:37.9]}
33... Rb5 {[%clk 0:00:16.8]} 34. Kc3 {[%clk 0:00:36.1]} 34... Ra4 {[%clk
0:00:17.8]} 35. Rb1 {[%clk 0:00:37.3]} 35... Raxa5 {[%clk 0:00:18.8]} 36. Bxa5
{[%clk 0:00:37.9]} 36... Rxa5 {[%clk 0:00:20.2]} 37. Kd3 {[%clk 0:00:38.3]}
37... Ra2 {[%clk 0:00:20.7]} 38. Rf1 {[%clk 0:00:35]} 38... f5 {[%clk
0:00:19.2]} 39. Ke3 {[%clk 0:00:36.3]} 39... Kg5 {[%clk 0:00:19.3]} 40. h3
{[%clk 0:00:35.6]} 40... e5 {[%clk 0:00:19.7]} 41. Nf3+ {[%clk 0:00:35.1]} 41...
Kf6 {[%clk 0:00:20.2]} 42. Nh4 {[%clk 0:00:36.3]} 42... Ra3+ {[%clk 0:00:17.6]}
43. Kf2 {[%clk 0:00:37.5]} 43... f4 {[%clk 0:00:19.1]} 44. Rg1 {[%clk
0:00:25.3]} 44... Ra2+ {[%clk 0:00:15.2]} 45. Kf3 {[%clk 0:00:26]} 45... Ra3+
{[%clk 0:00:16.3]} 46. Kg4 {[%clk 0:00:23.9]} 46... fxg3 {[%clk 0:00:17.4]} 47.
Rxg3 {[%clk 0:00:25.8]} 47... Ra4+ {[%clk 0:00:18.5]} 48. Kh5 {[%clk 0:00:27.2]}
48... Rf4 {[%clk 0:00:19]} 49. Rf3 {[%clk 0:00:20.7]} 49... Rxf3 {[%clk
0:00:16.4]} 50. Nxf3 {[%clk 0:00:22.6]} 50... e4 {[%clk 0:00:18.1]} 51. Nd4
{[%clk 0:00:23]} 51... e3 {[%clk 0:00:15]} 52. Kg4 {[%clk 0:00:22]} 52... Ke5
{[%clk 0:00:16.5]} 53. Ne2 {[%clk 0:00:23.2]} 53... Ke4 {[%clk 0:00:18]} 54. h4
{[%clk 0:00:24.6]} 54... Kd3 {[%clk 0:00:19.2]} 55. Ng3 {[%clk 0:00:25.8]} 1-0

[Event "*** Titled Tuesday Blitz"]
[Site "Chess.com"]
[Date "2019.11.05"]
[Round "10"]
[White "colegiodemadrid"]
[Black "codapbg94"]
[Result "1-0"]
[WhiteElo "2417"]
[BlackElo "2172"]
[TimeControl "180+2"]
[EndTime "15:21:26 PST"]
[Termination "colegiodemadrid won on time"]

1. Nf3 {[%clk 0:00:30]} 1... Nf6 {[%clk 0:02:57.9]} 2. c4 {[%clk 0:00:29.7]}
2... g6 {[%clk 0:02:58.5]} 3. b3 {[%clk 0:00:30]} 3... Bg7 {[%clk 0:02:59.9]} 4.
Bb2 {[%clk 0:00:31.5]} 4... O-O {[%clk 0:03:00.6]} 5. g3 {[%clk 0:00:33]} 5...
d6 {[%clk 0:03:00.5]} 6. d4 {[%clk 0:00:33.9]} 6... Nbd7 {[%clk 0:02:56.6]} 7.
Bg2 {[%clk 0:00:34.5]} 7... Qe8 {[%clk 0:02:52.7]} 8. Nc3 {[%clk 0:00:30.9]}
8... e5 {[%clk 0:02:52]} 9. Nb5 {[%clk 0:00:29.9]} 9... e4 {[%clk 0:02:06.2]}
10. Ng5 {[%clk 0:00:23.1]} 10... e3 {[%clk 0:01:41.5]} 11. f3 {[%clk 0:00:20.4]}
11... Qd8 {[%clk 0:01:39.1]} 12. O-O {[%clk 0:00:20.6]} 12... Re8 {[%clk
0:01:33.5]} 13. Ne4 {[%clk 0:00:20.1]} 13... Nh5 {[%clk 0:01:21.2]} 14. Qd3
{[%clk 0:00:18.3]} 14... f5 {[%clk 0:01:13.9]} 15. Nec3 {[%clk 0:00:19.5]} 15...
a6 {[%clk 0:00:59.3]} 16. Na3 {[%clk 0:00:20.1]} 16... f4 {[%clk 0:00:59.3]} 17.
g4 {[%clk 0:00:20.4]} 17... Nhf6 {[%clk 0:00:56.7]} 18. h3 {[%clk 0:00:21.8]}
18... c6 {[%clk 0:00:48.9]} 19. Ne4 {[%clk 0:00:21.9]} 19... Qe7 {[%clk
0:00:43.9]} 20. Nc2 {[%clk 0:00:20.9]} 20... Nxe4 {[%clk 0:00:38.4]} 21. fxe4
{[%clk 0:00:22.8]} 21... g5 {[%clk 0:00:38.7]} 22. Bf3 {[%clk 0:00:23.3]} 22...
Nf6 {[%clk 0:00:38.3]} 23. e5 {[%clk 0:00:23.3]} 23... dxe5 {[%clk 0:00:38.9]}
24. dxe5 {[%clk 0:00:24.8]} 24... Nd7 {[%clk 0:00:40.2]} 25. Rad1 {[%clk
0:00:23.7]} 25... Nxe5 {[%clk 0:00:40.2]} 26. Bxe5 {[%clk 0:00:19.2]} 26... Qxe5
{[%clk 0:00:40.9]} 27. Ne1 {[%clk 0:00:14.5]} 27... Be6 {[%clk 0:00:38]} 28. Qd6
{[%clk 0:00:15.7]} 28... Qxd6 {[%clk 0:00:32.8]} 29. Rxd6 {[%clk 0:00:17.6]}
29... Rad8 {[%clk 0:00:33.2]} 30. Rxd8 {[%clk 0:00:17.7]} 30... Rxd8 {[%clk
0:00:33.5]} 31. Nd3 {[%clk 0:00:19.6]} 31... Kf7 {[%clk 0:00:27.3]} 32. Kg2
{[%clk 0:00:20.6]} 32... h6 {[%clk 0:00:28]} 33. h4 {[%clk 0:00:21.8]} 33... Bf6
{[%clk 0:00:27.9]} 34. hxg5 {[%clk 0:00:22.8]} 34... hxg5 {[%clk 0:00:29.1]} 35.
Rh1 {[%clk 0:00:24.1]} 35... Rh8 {[%clk 0:00:29.9]} 36. Rxh8 {[%clk 0:00:24.3]}
36... Bxh8 {[%clk 0:00:30.6]} 37. Nc5 {[%clk 0:00:26.2]} 37... Bc8 {[%clk
0:00:31.1]} 38. Be4 {[%clk 0:00:26.9]} 38... Bd4 {[%clk 0:00:31.1]} 39. Nd3
{[%clk 0:00:27]} 39... Kf6 {[%clk 0:00:29.8]} 40. Kf3 {[%clk 0:00:27.5]} 40...
c5 {[%clk 0:00:24.7]} 41. Bd5 {[%clk 0:00:27.7]} 41... b5 {[%clk 0:00:21.5]} 42.
cxb5 {[%clk 0:00:26.5]} 42... axb5 {[%clk 0:00:22.2]} 43. a4 {[%clk 0:00:28.4]}
43... bxa4 {[%clk 0:00:20.9]} 44. bxa4 {[%clk 0:00:30.3]} 44... Ba6 {[%clk
0:00:20.7]} 45. Nb2 {[%clk 0:00:30.7]} 45... Ke5 {[%clk 0:00:19.1]} 46. Bc4
{[%clk 0:00:31.3]} 46... Bxc4 {[%clk 0:00:19.3]} 47. Nxc4+ {[%clk 0:00:33.2]}
47... Kd5 {[%clk 0:00:20.1]} 48. Nb6+ {[%clk 0:00:34.5]} 48... Kc6 {[%clk
0:00:19.7]} 49. Nc4 {[%clk 0:00:35.7]} 49... Kd5 {[%clk 0:00:20.6]} 50. Nb6+
{[%clk 0:00:35.9]} 50... Kc6 {[%clk 0:00:17.5]} 51. Nc4 {[%clk 0:00:37]} 51...
Kb7 {[%clk 0:00:17]} 52. Ke4 {[%clk 0:00:37.8]} 52... Ka6 {[%clk 0:00:18.2]} 53.
Kd3 {[%clk 0:00:37.9]} 53... Bf6 {[%clk 0:00:11.9]} 54. Nd6 {[%clk 0:00:38]}
54... Bd4 {[%clk 0:00:05.1]} 55. Ne4 {[%clk 0:00:38.8]} 55... Ka5 {[%clk
0:00:03.3]} 56. Nxg5 {[%clk 0:00:37.5]} 56... Kxa4 {[%clk 0:00:02.8]} 57. Ne6
{[%clk 0:00:38.3]} 1-0

[Event "*** Titled Tuesday Blitz"]
[Site "Chess.com"]
[Date "2019.11.05"]
[Round "10"]
[White "Vasily85"]
[Black "Hadza_3"]
[Result "1-0"]
[WhiteElo "2250"]
[BlackElo "2358"]
[TimeControl "180+2"]
[EndTime "15:21:30 PST"]
[Termination "Vasily85 won by resignation"]

1. Nf3 {[%clk 0:03:01.9]} 1... Nf6 {[%clk 0:02:59.1]} 2. d4 {[%clk 0:03:02.1]}
2... g6 {[%clk 0:03:00]} 3. c4 {[%clk 0:03:03]} 3... Bg7 {[%clk 0:03:01.9]} 4.
Nc3 {[%clk 0:03:04.6]} 4... d6 {[%clk 0:03:03.3]} 5. Bg5 {[%clk 0:03:06.1]} 5...
O-O {[%clk 0:03:02.9]} 6. e3 {[%clk 0:03:06.7]} 6... Nbd7 {[%clk 0:03:01.3]} 7.
Qc2 {[%clk 0:03:03.3]} 7... h6 {[%clk 0:03:01.5]} 8. Bh4 {[%clk 0:03:03.9]} 8...
c6 {[%clk 0:03:01.9]} 9. Be2 {[%clk 0:03:04.4]} 9... Qa5 {[%clk 0:03:02.8]} 10.
O-O {[%clk 0:03:04.2]} 10... e5 {[%clk 0:03:03.5]} 11. Rab1 {[%clk 0:02:58.6]}
11... Re8 {[%clk 0:02:59]} 12. b4 {[%clk 0:02:59]} 12... Qc7 {[%clk 0:03:00.3]}
13. c5 {[%clk 0:02:44]} 13... d5 {[%clk 0:02:45.4]} 14. dxe5 {[%clk 0:02:36.7]}
14... Nxe5 {[%clk 0:02:44.1]} 15. Bg3 {[%clk 0:02:38.2]} 15... Nxf3+ {[%clk
0:02:41.2]} 16. Bxf3 {[%clk 0:02:40.1]} 16... Qe7 {[%clk 0:02:37.6]} 17. Bd6
{[%clk 0:02:39.6]} 17... Qd8 {[%clk 0:02:35.8]} 18. b5 {[%clk 0:02:38.2]} 18...
Bf5 {[%clk 0:02:35.6]} 19. Qa4 {[%clk 0:02:24.9]} 19... Bxb1 {[%clk 0:02:35.7]}
20. Rxb1 {[%clk 0:02:26.8]} 20... Qd7 {[%clk 0:02:10.3]} 21. bxc6 {[%clk
0:02:11.7]} 21... bxc6 {[%clk 0:02:12.2]} 22. Qa6 {[%clk 0:02:05.9]} 22... Rec8
{[%clk 0:01:58.8]} 23. h3 {[%clk 0:01:55.5]} 23... Ne8 {[%clk 0:01:59.5]} 24.
Nxd5 {[%clk 0:01:40.7]} 24... Nxd6 {[%clk 0:02:00.3]} 25. Nb4 {[%clk 0:01:20.9]}
25... Qf5 {[%clk 0:01:25.1]} 26. Rc1 {[%clk 0:01:21]} 26... Ne4 {[%clk
0:01:22.2]} 27. Nxc6 {[%clk 0:01:21.1]} 27... Kh7 {[%clk 0:01:18.8]} 28. Ne7
{[%clk 0:01:18.6]} 28... Rxc5 {[%clk 0:00:59.9]} 29. Nxf5 {[%clk 0:00:36.4]}
29... Rxc1+ {[%clk 0:00:56.2]} 30. Kh2 {[%clk 0:00:37.9]} 30... gxf5 {[%clk
0:00:51]} 31. Qa5 {[%clk 0:00:31.5]} 31... Kg6 {[%clk 0:00:38.4]} 32. Qd5 {[%clk
0:00:31.2]} 32... Re8 {[%clk 0:00:30.8]} 33. g4 {[%clk 0:00:27.1]} 33... Re5
{[%clk 0:00:26.6]} 34. gxf5+ {[%clk 0:00:23.8]} 34... Kh7 {[%clk 0:00:27.3]} 35.
Qd3 {[%clk 0:00:16]} 35... Nxf2 {[%clk 0:00:25.4]} 36. Qd2 {[%clk 0:00:12.6]}
36... Rxf5 {[%clk 0:00:14.3]} 37. Qxf2 {[%clk 0:00:11.8]} 37... Kg8 {[%clk
0:00:09.8]} 38. Qe2 {[%clk 0:00:09.1]} 38... Rb1 {[%clk 0:00:09]} 39. Be4 {[%clk
0:00:06.4]} 39... Rg5 {[%clk 0:00:04.9]} 40. Bxb1 {[%clk 0:00:06.4]} 40... Be5+
{[%clk 0:00:05.1]} 41. Kh1 {[%clk 0:00:07.7]} 41... h5 {[%clk 0:00:03.8]} 42.
Qd3 {[%clk 0:00:07.9]} 42... h4 {[%clk 0:00:04.5]} 43. Qh7+ {[%clk 0:00:08.6]}
43... Kf8 {[%clk 0:00:06.1]} 44. Qh6+ {[%clk 0:00:09.8]} 44... Rg7 {[%clk
0:00:06.2]} 45. Qxh4 {[%clk 0:00:09.9]} 45... f6 {[%clk 0:00:05]} 46. Be4 {[%clk
0:00:09.3]} 46... Ke7 {[%clk 0:00:06.9]} 47. Qh6 {[%clk 0:00:09.3]} 47... Rg3
{[%clk 0:00:07.1]} 48. Qh7+ {[%clk 0:00:07.9]} 48... Kd6 {[%clk 0:00:08]} 49.
Bf5 {[%clk 0:00:09.4]} 49... Rxe3 {[%clk 0:00:08.7]} 50. Qd7+ {[%clk 0:00:10.5]}
50... Kc5 {[%clk 0:00:09.5]} 51. Qxa7+ {[%clk 0:00:12.1]} 1-0